[Event "11th LCC Rapid 2019"]
[Site "London"]
[Date "2019.12.07"]
[Round "6.10"]
[White "Ortiz Sanchez, Luis"]
[Black "Fernandez, Michael"]
[Result "1/2-1/2"]
[WhiteElo "1947"]
[BlackElo "2186"]
[PlyCount "96"]
[EventDate "2019.12.08"]
[EventType "swiss"]
[EventCountry "ENG"]
[TimeControl "15+10"]
[WhiteClock "0:01:02"]
[BlackClock "0:05:06"]

1. e4 {[%emt 0:00:00]} c5 {[%emt 0:00:00]} 2. Nc3 {[%emt 0:00:00]} g6 {[%emt 0:00:00]} 3. a3 {[%emt 0:00:00]} Bg7 {[%emt 0:00:00]} 4. Bc4 {[%emt 0:00:00]} Nc6 {[%emt 0:00:00]} 5. d3 {[%emt 0:00:00]} a6 {[%emt 0:00:00]} 6. Ba2 {[%emt 0:00:00]} e6 {[%emt 0:00:00]} 7. Rb1 {[%emt 0:00:00]} Nge7 {[%emt 0:00:00]} 8. h4 {[%emt 0:00:00]} d5 {[%emt 0:00:00]} 9. exd5 {[%emt 0:00:00]} exd5 {[%emt 0:00:00]} 10. h5 {[%emt 0:00:00]} Nd4 {[%emt 0:00:00]} 11. Nce2 {[%emt 0:00:00]} Bg4 {[%emt 0:00:00]} 12. hxg6 {[%emt 0:00:00]} hxg6 {[%emt 0:00:00]} 13. Rxh8+ {[%emt 0:00:00]} Bxh8 {[%emt 0:00:00]} 14. c3 {[%emt 0:00:00]} Nxe2 {[%emt 0:00:00]} 15. Nxe2 {[%emt 0:00:00]} Nc6 {[%emt 0:00:00]} 16. Bf4 {[%emt 0:00:00]} Be5 {[%emt 0:00:00]} 17. Qd2 {[%emt 0:00:00]} Qe7 {[%emt 0:00:00]} 18. Bxe5 {[%emt 0:00:00]} Nxe5 {[%emt 0:00:00]} 19. Qe3 {[%emt 0:00:00]} O-O-O {[%emt 0:00:41]} 20. Kd2 {[%emt 0:00:00]} d4 {[%emt 0:00:55]} 21. cxd4 {[%emt 0:00:00]} Bxe2 {[%emt 0:00:03]} 22. Qxe5 {[%emt 0:00:00]} Qxe5 {[%emt 0:00:03]} 23. dxe5 {[%emt 0:00:00]} Bxd3 {[%emt 0:00:02]} 24. Ra1 {[%emt 0:00:00]} b5 {[%emt 0:01:24]} 25. Ke3 {[%emt 0:00:00]} c4 {[%emt 0:00:04]} 26. Rd1 {[%emt 0:00:00]} Re8 {[%emt 0:00:17]} 27. f4 {[%emt 0:00:00]} f6 {[%emt 0:00:09]} 28. Kd4 {[%emt 0:00:00]} fxe5+ {[%emt 0:00:20]} 29. fxe5 {[%emt 0:00:00]} Kd7 {[%emt 0:00:29]} 30. a4 {[%emt 0:00:00]} Ke6 {[%emt 0:00:12]} 31. Re1 {[%emt 0:00:00]} Rd8+ {[%emt 0:00:05]} 32. Kc5 {[%emt 0:00:00]} Rd5+ {[%emt 0:00:07]} 33. Kc6 {[%emt 0:00:00]} bxa4 {[%emt 0:00:01]} 34. Re3 {[%emt 0:00:00]} Bf1 {[%emt 0:00:44]} 35. Rg3 {[%emt 0:00:36]} Rd2 {[%emt 0:00:13]} 36. Kc5 {[%emt 0:00:52]} Kxe5 {[%emt 0:00:11]} 37. Re3+ {[%emt 0:00:14]} Kf4 {[%emt 0:00:04]} 38. Rf3+ {[%emt 0:00:01]} Ke5 {[%emt 0:00:10]} 39. Rxf1 {[%emt 0:00:03]} Rxb2 {[%emt 0:00:03]} 40. Bxc4 {[%emt 0:00:03]} Rxg2 {[%emt 0:00:04]} 41. Bxa6 {[%emt 0:00:10]} Rg4 {[%emt 0:00:15]} 42. Ra1 {[%emt 0:00:15]} g5 {[%emt 0:00:12]} 43. Bc4 {[%emt 0:00:01]} Re4 {[%emt 0:00:07]} 44. Rxa4 {[%emt 0:00:04]} Kf4 {[%emt 0:00:02]} 45. Ra8 {[%emt 0:00:05]} g4 {[%emt 0:00:06]} 46. Bd5 {[%emt 0:00:04]} Re2 {[%emt 0:00:04]} 47. Rf8+ {[%emt 0:00:27]} Ke3 {[%emt 0:00:03]} 48. Re8+ {[%emt 0:00:14]} Kf2 {[%emt 0:00:03]} 1/2-1/2

[Event "11th LCC Rapid 2019"]
[Site "London"]
[Date "2019.12.07"]
[Round "6.11"]
[White "Watson, Jacob"]
[Black "Abrahams, Daniel"]
[Result "0-1"]
[WhiteElo "1922"]
[BlackElo "2176"]
[PlyCount "60"]
[EventDate "2019.12.08"]
[EventType "swiss"]
[EventCountry "ENG"]
[TimeControl "15+10"]
[WhiteClock "0:15:21"]
[BlackClock "0:03:14"]

1. d4 {[%emt 0:00:00]} Nf6 {[%emt 0:00:00]} 2. Nf3 {[%emt 0:00:00]} e6 {[%emt 0:00:00]} 3. Bf4 {[%emt 0:00:00]} c5 {[%emt 0:00:00]} 4. c3 {[%emt 0:00:00]} b6 {[%emt 0:00:00]} 5. e3 {[%emt 0:00:00]} Bb7 {[%emt 0:00:00]} 6. Nbd2 {[%emt 0:00:00]} cxd4 {[%emt 0:00:00]} 7. cxd4 {[%emt 0:00:00]} Nc6 {[%emt 0:00:00]} 8. Be2 {[%emt 0:00:00]} d6 {[%emt 0:00:00]} 9. O-O {[%emt 0:00:00]} Be7 {[%emt 0:00:00]} 10. h3 {[%emt 0:00:00]} O-O {[%emt 0:00:00]} 11. Re1 {[%emt 0:00:00]} Re8 {[%emt 0:00:00]} 12. Bf1 {[%emt 0:00:00]} Bf8 {[%emt 0:00:00]} 13. e4 {[%emt 0:00:00]} e5 {[%emt 0:00:00]} 14. dxe5 {[%emt 0:00:00]} Nxe5 {[%emt 0:00:00]} 15. Nxe5 {[%emt 0:00:00]} dxe5 {[%emt 0:00:00]} 16. Bg3 {[%emt 0:00:00]} Qd4 {[%emt 0:00:00]} 17. Nf3 {[%emt 0:00:00]} Qxb2 {[%emt 0:00:00]} 18. Re2 {[%emt 0:00:00]} Qc3 {[%emt 0:00:00]} 19. Rc2 {[%emt 0:00:00]} Qa5 {[%emt 0:00:00]} 20. Rc7 {[%emt 0:00:00]} Bxe4 {[%emt 0:00:00]} 21. Bc4 {[%emt 0:00:00]} Bd5 {[%emt 0:00:00]} 22. Bxe5 {[%emt 0:00:00]} Bxc4 {[%emt 0:00:00]} 23. Bxf6 {[%emt 0:00:00]} b5 {[%emt 0:00:00]} 24. Rc6 {[%emt 0:00:00]} gxf6 {[%emt 0:00:00]} 25. Nh4 {[%emt 0:00:00]} Rad8 {[%emt 0:00:00]} 26. Qg4+ {[%emt 0:00:00]} Kh8 {[%emt 0:00:00]} 27. Nf5 {[%emt 0:00:00]} Re1+ {[%emt 0:00:00]} 28. Rxe1 {[%emt 0:00:00]} Qxe1+ {[%emt 0:00:00]} 29. Kh2 {[%emt 0:00:00]} Be6 {[%emt 0:00:00]} 30. f4 {[%emt 0:02:01]} Qe4 {[%emt 0:00:00]} 0-1

[Event "11th LCC Rapid 2019"]
[Site "London"]
[Date "2019.12.07"]
[Round "6.12"]
[White "Marusenko, Petr"]
[Black "O'Gorman, Tom"]
[Result "1/2-1/2"]
[WhiteElo "2085"]
[BlackElo "2001"]
[PlyCount "152"]
[EventDate "2019.12.08"]
[EventType "swiss"]
[EventCountry "ENG"]
[TimeControl "15+10"]
[WhiteClock "0:02:34"]
[BlackClock "0:01:58"]

1. d4 {[%emt 0:00:00]} Nf6 {[%emt 0:00:00]} 2. c4 {[%emt 0:00:00]} c5 {[%emt 0:00:00]} 3. d5 {[%emt 0:00:00]} b5 {[%emt 0:00:00]} 4. cxb5 {[%emt 0:00:00]} a6 {[%emt 0:00:00]} 5. bxa6 {[%emt 0:00:00]} g6 {[%emt 0:00:00]} 6. g3 {[%emt 0:00:00]} Bg7 {[%emt 0:00:00]} 7. Bg2 {[%emt 0:00:00]} d6 {[%emt 0:00:00]} 8. Nc3 {[%emt 0:00:00]} O-O {[%emt 0:00:00]} 9. Nf3 {[%emt 0:00:00]} Nbd7 {[%emt 0:00:00]} 10. O-O {[%emt 0:00:00]} Nb6 {[%emt 0:00:00]} 11. Rb1 {[%emt 0:00:00]} Bf5 {[%emt 0:00:00]} 12. Ra1 {[%emt 0:00:00]} Rxa6 {[%emt 0:00:00]} 13. Nd2 {[%emt 0:00:00]} Qa8 {[%emt 0:00:00]} 14. e4 {[%emt 0:00:00]} Bg4 {[%emt 0:00:00]} 15. Bf3 {[%emt 0:00:00]} Bxf3 {[%emt 0:00:00]} 16. Qxf3 {[%emt 0:00:00]} Nfd7 {[%emt 0:00:00]} 17. Ndb1 {[%emt 0:00:00]} e6 {[%emt 0:00:00]} 18. dxe6 {[%emt 0:00:00]} fxe6 {[%emt 0:00:00]} 19. Qg4 {[%emt 0:00:00]} Qe8 {[%emt 0:00:00]} 20. Rd1 {[%emt 0:00:00]} Qe7 {[%emt 0:00:00]} 21. Bg5 {[%emt 0:00:00]} Bf6 {[%emt 0:00:00]} 22. Bxf6 {[%emt 0:00:00]} Qxf6 {[%emt 0:00:00]} 23. Qe2 {[%emt 0:00:00]} Na4 {[%emt 0:00:00]} 24. Nxa4 {[%emt 0:00:00]} Rxa4 {[%emt 0:00:09]} 25. Nc3 {[%emt 0:00:00]} Rd4 {[%emt 0:00:00]} 26. Nb5 {[%emt 0:00:00]} Rb4 {[%emt 0:00:00]} 27. Rd2 {[%emt 0:00:00]} Ne5 {[%emt 0:00:00]} 28. f4 {[%emt 0:00:00]} Nc4 {[%emt 0:00:00]} 29. Rc2 {[%emt 0:00:00]} Rxb5 {[%emt 0:00:54]} 30. Qxc4 {[%emt 0:00:00]} Rb4 {[%emt 0:00:04]} 31. Qc3 {[%emt 0:00:00]} Qxc3 {[%emt 0:00:03]} 32. bxc3 {[%emt 0:00:00]} Rxe4 {[%emt 0:00:02]} 33. a4 {[%emt 0:00:00]} Ra8 {[%emt 0:00:08]} 34. a5 {[%emt 0:00:00]} e5 {[%emt 0:01:02]} 35. fxe5 {[%emt 0:00:00]} Rxe5 {[%emt 0:00:01]} 36. a6 {[%emt 0:00:00]} Re7 {[%emt 0:00:08]} 37. Rb2 {[%emt 0:00:00]} Kf7 {[%emt 0:00:38]} 38. Rb6 {[%emt 0:00:00]} Rd7 {[%emt 0:00:36]} 39. c4 {[%emt 0:00:00]} Ke7 {[%emt 0:00:13]} 40. Re1+ {[%emt 0:00:01]} Kd8 {[%emt 0:00:04]} 41. Rc6 {[%emt 0:00:03]} d5 {[%emt 0:00:24]} 42. Rf1 {[%emt 0:02:40]} Raa7 {[%emt 0:01:04]} 43. Rf8+ {[%emt 0:01:07]} Ke7 {[%emt 0:00:07]} 44. Rh8 {[%emt 0:00:01]} dxc4 {[%emt 0:01:11]} 45. Rxh7+ {[%emt 0:00:22]} Kd8 {[%emt 0:00:08]} 46. Rh8+ {[%emt 0:01:09]} Ke7 {[%emt 0:00:02]} 47. Rhc8 {[%emt 0:00:01]} Rd6 {[%emt 0:00:45]} 48. R6c7+ {[%emt 0:00:41]} Rxc7 {[%emt 0:00:01]} 49. Rxc7+ {[%emt 0:00:01]} Ke6 {[%emt 0:00:01]} 50. a7 {[%emt 0:00:05]} Rd8 {[%emt 0:00:08]} 51. Rxc5 {[%emt 0:00:08]} Ra8 {[%emt 0:00:04]} 52. Rxc4 {[%emt 0:01:19]} Rxa7 {[%emt 0:00:02]} 53. Rc2 {[%emt 0:00:01]} Kf5 {[%emt 0:00:02]} 54. Kg2 {[%emt 0:00:02]} Ra3 {[%emt 0:00:04]} 55. h4 {[%emt 0:00:07]} Kg4 {[%emt 0:00:11]} 56. Rc4+ {[%emt 0:00:02]} Kh5 {[%emt 0:00:01]} 57. Rc5+ {[%emt 0:00:06]} Kh6 {[%emt 0:00:02]} 58. Kh3 {[%emt 0:00:01]} Rb3 {[%emt 0:00:01]} 59. Rc6 {[%emt 0:00:24]} Ra3 {[%emt 0:00:06]} 60. Kg2 {[%emt 0:00:17]} Ra2+ {[%emt 0:00:03]} 61. Kf3 {[%emt 0:00:01]} Ra3+ {[%emt 0:00:01]} 62. Kf4 {[%emt 0:00:10]} Ra4+ {[%emt 0:00:01]} 63. Kf3 {[%emt 0:00:11]} Ra3+ {[%emt 0:00:01]} 64. Kg4 {[%emt 0:00:00]} Ra4+ {[%emt 0:00:01]} 65. Kh3 {[%emt 0:00:01]} Ra3 {[%emt 0:00:01]} 66. Rc8 {[%emt 0:00:05]} Rb3 {[%emt 0:00:03]} 67. Rc5 {[%emt 0:00:28]} Ra3 {[%emt 0:00:03]} 68. Rb5 {[%emt 0:00:02]} Rc3 {[%emt 0:00:02]} 69. Kg2 {[%emt 0:00:03]} Ra3 {[%emt 0:00:02]} 70. Rb4 {[%emt 0:00:12]} Ra2+ {[%emt 0:00:04]} 71. Kf3 {[%emt 0:00:02]} Ra3+ {[%emt 0:00:14]} 72. Kg4 {[%emt 0:00:03]} Ra1 {[%emt 0:00:03]} 73. Kf4 {[%emt 0:00:10]} Ra2 {[%emt 0:00:34]} 74. g4 {[%emt 0:00:08]} Ra3 {[%emt 0:00:06]} 75. g5+ {[%emt 0:00:26]} Kh5 {[%emt 0:00:11]} 76. Ke5 {[%emt 0:00:17]} Rf3 {[%emt 0:00:25]} 1/2-1/2

[Event "11th LCC Rapid 2019"]
[Site "London"]
[Date "2019.12.07"]
[Round "6.14"]
[White "Akeya-Price, Robert"]
[Black "Mihalik, Agoston"]
[Result "1/2-1/2"]
[WhiteElo "1880"]
[BlackElo "2196"]
[PlyCount "107"]
[EventDate "2019.12.08"]
[EventType "swiss"]
[EventCountry "ENG"]
[TimeControl "15+10"]

1. d4 {[%emt 0:01:57]} Nf6 {[%emt 0:00:01]} 2. c4 e6 3. Nf3 {[%emt 0:00:02]} Bb4+ {[%emt 0:00:03]} 4. Bd2 {[%emt 0:00:02]} c5 5. Bxb4 {[%emt 0:00:03]} cxb4 {[%emt 0:00:02]} 6. e3 {[%emt 0:00:02]} b6 {[%emt 0:00:19]} 7. Be2 {[%emt 0:00:08]} Bb7 {[%emt 0:00:08]} 8. O-O {[%emt 0:00:03]} O-O {[%emt 0:00:04]} 9. a3 {[%emt 0:00:04]} bxa3 {[%emt 0:00:23]} 10. Rxa3 {[%emt 0:00:04]} a5 {[%emt 0:00:09]} 11. Nc3 {[%emt 0:00:05]} d5 {[%emt 0:00:18]} 12. b3 {[%emt 0:00:24]} Na6 {[%emt 0:00:49]} 13. Qa1 {[%emt 0:00:47]} Nb4 {[%emt 0:00:06]} 14. Qb2 {[%emt 0:00:04]} Qe7 {[%emt 0:01:39]} 15. Rfa1 {[%emt 0:00:17]} Rfc8 {[%emt 0:00:26]} 16. Na4 {[%emt 0:00:15]} Nd7 {[%emt 0:00:43]} 17. Nc3 {[%emt 0:02:09]} h6 {[%emt 0:00:53]} 18. h3 {[%emt 0:00:09]} f5 {[%emt 0:00:34]} 19. Na2 {[%emt 0:01:40]} Rf8 {[%emt 0:02:10]} 20. Nxb4 {[%emt 0:00:12]} Qxb4 21. Ra4 {[%emt 0:01:09]} Qd6 {[%emt 0:00:09]} 22. Qa3 {[%emt 0:00:12]} Qxa3 {[%emt 0:00:21]} 23. R4xa3 {[%emt 0:00:04]} Rfc8 {[%emt 0:01:54]} 24. Nd2 {[%emt 0:01:01]} Nf6 {[%emt 0:00:26]} 25. Nf3 {[%emt 0:00:51]} Rc7 {[%emt 0:01:41]} 26. c5 {[%emt 0:00:36]} bxc5 {[%emt 0:00:12]} 27. Rxa5 {[%emt 0:00:06]} Rxa5 {[%emt 0:01:36]} 28. Rxa5 {[%emt 0:00:02]} c4 {[%emt 0:01:43]} 29. bxc4 {[%emt 0:00:02]} dxc4 30. Rc5 {[%emt 0:00:53]} Rxc5 {[%emt 0:00:13]} 31. dxc5 {[%emt 0:00:02]} c3 {[%emt 0:00:31]} 32. Nd4 {[%emt 0:00:35]} Ne4 {[%emt 0:00:16]} 33. Bd1 {[%emt 0:01:57]} Nxc5 {[%emt 0:00:09]} 34. Nb5 {[%emt 0:00:03]} Bc6 {[%emt 0:01:38]} 35. Nxc3 {[%emt 0:00:07]} Kf7 {[%emt 0:00:02]} 36. f3 {[%emt 0:00:45]} Kf6 {[%emt 0:00:02]} 37. Kf2 {[%emt 0:00:12]} Nd3+ {[%emt 0:00:07]} 38. Ke2 {[%emt 0:00:07]} Ne5 {[%emt 0:00:01]} 39. Kf2 {[%emt 0:00:08]} g6 {[%emt 0:00:06]} 40. Bc2 {[%emt 0:00:28]} g5 {[%emt 0:00:08]} 41. f4 {[%emt 0:01:27]} Nc4 {[%emt 0:00:25]} 42. Bd3 {[%emt 0:00:08]} Nd6 {[%emt 0:00:23]} 43. g4 {[%emt 0:00:41]} Nf7 {[%emt 0:00:54]} 44. Kg3 {[%emt 0:00:21]} gxf4+ {[%emt 0:00:13]} 45. exf4 {[%emt 0:00:05]} Nd6 {[%emt 0:00:17]} 46. Bc2 {[%emt 0:00:20]} Nc4 {[%emt 0:00:06]} 47. Bd3 {[%emt 0:00:10]} Ne3 {[%emt 0:00:12]} 48. Ne2 {[%emt 0:00:30]} Nf1+ {[%emt 0:00:28]} 49. Kf2 {[%emt 0:00:06]} Nd2 {[%emt 0:00:03]} 50. Nd4 {[%emt 0:00:25]} Ne4+ {[%emt 0:00:08]} 51. Ke3 {[%emt 0:00:19]} Bd5 {[%emt 0:00:02]} 52. Bxe4 {[%emt 0:00:11]} Bxe4 {[%emt 0:00:01]} 53. Ne2 {[%emt 0:00:12]} Bg2 {[%emt 0:00:10]} 54. Ng1 {[%emt 0:00:08]} 1/2-1/2

[Event "11th LCC Rapid 2019"]
[Site "London"]
[Date "2019.12.07"]
[Round "6.16"]
[White "Stewart, Ashley"]
[Black "Tombolis, Christopher"]
[Result "1-0"]
[WhiteElo "2172"]
[BlackElo "1875"]
[PlyCount "279"]
[EventDate "2019.12.08"]
[EventType "swiss"]
[EventCountry "ENG"]
[TimeControl "15+10"]
[WhiteClock "0:01:15"]
[BlackClock "0:00:32"]

1. c4 {[%emt 0:00:00]} Nf6 {[%emt 0:00:00]} 2. g3 {[%emt 0:00:00]} e6 {[%emt 0:00:00]} 3. Bg2 {[%emt 0:00:00]} d5 {[%emt 0:00:00]} 4. Nf3 {[%emt 0:00:00]} Be7 {[%emt 0:00:00]} 5. d4 {[%emt 0:00:00]} O-O {[%emt 0:00:00]} 6. Qc2 {[%emt 0:00:00]} a6 {[%emt 0:00:00]} 7. Nbd2 {[%emt 0:00:00]} dxc4 {[%emt 0:00:00]} 8. Nxc4 {[%emt 0:00:00]} c5 {[%emt 0:00:00]} 9. dxc5 {[%emt 0:00:00]} Qc7 {[%emt 0:00:00]} 10. Nb6 {[%emt 0:00:00]} Bxc5 {[%emt 0:00:00]} 11. Nxa8 {[%emt 0:00:00]} Bxf2+ {[%emt 0:00:00]} 12. Kd1 {[%emt 0:00:00]} Rd8+ {[%emt 0:00:00]} 13. Bd2 {[%emt 0:00:00]} Qd6 {[%emt 0:00:00]} 14. Qc7 {[%emt 0:00:00]} Qf8 {[%emt 0:00:00]} 15. Qxb8 {[%emt 0:00:00]} Bd7 {[%emt 0:00:00]} 16. Qf4 {[%emt 0:00:00]} Nd5 {[%emt 0:00:00]} 17. Qe4 {[%emt 0:00:00]} Bc6 {[%emt 0:00:00]} 18. Qd3 {[%emt 0:00:39]} Ne3+ {[%emt 0:00:00]} 19. Bxe3 {[%emt 0:00:10]} Rxd3+ {[%emt 0:00:00]} 20. exd3 {[%emt 0:00:02]} Bxe3 {[%emt 0:00:00]} 21. Ke2 {[%emt 0:00:11]} Bc5 {[%emt 0:00:00]} 22. Rac1 {[%emt 0:00:24]} Bd6 {[%emt 0:00:00]} 23. Nb6 {[%emt 0:00:05]} Bc5 {[%emt 0:00:00]} 24. Nc4 {[%emt 0:00:12]} b5 {[%emt 0:00:00]} 25. Nce5 {[%emt 0:00:07]} Bxf3+ {[%emt 0:00:00]} 26. Bxf3 {[%emt 0:00:14]} Bd4 {[%emt 0:00:00]} 27. Nc6 {[%emt 0:00:29]} Bf6 {[%emt 0:00:00]} 28. Na7 {[%emt 0:00:34]} Bd8 {[%emt 0:00:00]} 29. Rc8 {[%emt 0:00:07]} g6 {[%emt 0:00:00]} 30. Nc6 {[%emt 0:00:06]} Qc5 {[%emt 0:00:00]} 31. Rxd8+ {[%emt 0:00:16]} Kg7 {[%emt 0:00:00]} 32. Rd1 {[%emt 0:00:25]} g5 {[%emt 0:00:00]} 33. b3 {[%emt 0:00:17]} g4 {[%emt 0:00:00]} 34. Bg2 {[%emt 0:00:00]} Qc2+ {[%emt 0:00:00]} 35. Rd2 {[%emt 0:00:02]} Qc5 {[%emt 0:00:00]} 36. d4 {[%emt 0:00:08]} Qc1 {[%emt 0:00:00]} 37. Ne5 {[%emt 0:00:21]} Qg1 {[%emt 0:00:00]} 38. Kd3 {[%emt 0:00:06]} Qxh2 {[%emt 0:00:00]} 39. Rd7 {[%emt 0:00:20]} Qxg3+ {[%emt 0:00:00]} 40. Kc2 {[%emt 0:00:00]} h5 {[%emt 0:00:00]} 41. Rxf7+ {[%emt 0:00:03]} Kh6 {[%emt 0:00:00]} 42. Be4 {[%emt 0:00:49]} b4 {[%emt 0:00:00]} 43. Bd3 {[%emt 0:00:19]} a5 {[%emt 0:00:00]} 44. Rdf2 {[%emt 0:00:16]} Kg5 {[%emt 0:00:00]} 45. Rg7+ {[%emt 0:00:19]} Kh4 {[%emt 0:00:00]} 46. Ng6+ {[%emt 0:00:11]} Kg5 {[%emt 0:00:00]} 47. Ne5+ {[%emt 0:00:35]} Kh4 {[%emt 0:00:00]} 48. Rgf7 {[%emt 0:00:04]} a4 {[%emt 0:00:00]} 49. bxa4 {[%emt 0:00:07]} b3+ {[%emt 0:00:00]} 50. axb3 {[%emt 0:00:03]} Qe3 {[%emt 0:00:00]} 51. Rf1 {[%emt 0:00:09]} Qxd4 {[%emt 0:00:00]} 52. Rh1+ {[%emt 0:00:11]} Kg3 {[%emt 0:00:00]} 53. Rxh5 {[%emt 0:00:14]} Qc5+ {[%emt 0:00:01]} 54. Bc4 {[%emt 0:00:12]} Qa3 {[%emt 0:00:07]} 55. Rhh7 {[%emt 0:00:10]} Qa2+ {[%emt 0:00:04]} 56. Kd3 {[%emt 0:00:07]} Qb1+ {[%emt 0:00:04]} 57. Ke3 {[%emt 0:00:07]} Qc1+ {[%emt 0:00:04]} 58. Ke4 {[%emt 0:00:08]} Qe1+ {[%emt 0:00:22]} 59. Kd4 {[%emt 0:00:01]} Qa1+ {[%emt 0:00:06]} 60. Ke4 {[%emt 0:00:19]} Qe1+ {[%emt 0:00:03]} 61. Kd4 {[%emt 0:00:04]} Qa1+ {[%emt 0:00:02]} 62. Kd3 {[%emt 0:00:01]} Qxe5 {[%emt 0:01:08]} 63. Re7 {[%emt 0:00:17]} Qf5+ {[%emt 0:00:14]} 64. Kc3 {[%emt 0:00:07]} e5 {[%emt 0:00:30]} 65. Rhg7 {[%emt 0:00:16]} e4 {[%emt 0:00:17]} 66. Ref7 {[%emt 0:00:05]} Qa5+ {[%emt 0:00:19]} 67. Kd4 {[%emt 0:00:08]} Qb6+ {[%emt 0:01:37]} 68. Kxe4 {[%emt 0:00:02]} Qc6+ {[%emt 0:00:05]} 69. Kd4 {[%emt 0:00:12]} Qd6+ {[%emt 0:00:01]} 70. Bd5 {[%emt 0:00:15]} Qb4+ {[%emt 0:00:03]} 71. Ke5 {[%emt 0:00:05]} Qc3+ {[%emt 0:00:20]} 72. Kd6 {[%emt 0:00:12]} Qb4+ {[%emt 0:00:05]} 73. Kc6 {[%emt 0:00:07]} Qc3+ {[%emt 0:00:01]} 74. Bc4 {[%emt 0:00:05]} Qd4 {[%emt 0:00:25]} 75. a5 {[%emt 0:00:31]} Qe4+ {[%emt 0:00:08]} 76. Kb5 {[%emt 0:00:04]} Qe5+ {[%emt 0:00:04]} 77. Kb6 {[%emt 0:00:14]} Qd6+ {[%emt 0:00:09]} 78. Kb7 {[%emt 0:00:05]} Qb4+ {[%emt 0:00:02]} 79. Ka6 {[%emt 0:00:06]} Qd6+ {[%emt 0:00:01]} 80. Kb5 {[%emt 0:00:05]} Qe5+ {[%emt 0:00:04]} 81. Kb4 {[%emt 0:00:05]} Qe1+ {[%emt 0:00:03]} 82. Ka4 {[%emt 0:00:09]} Qa1+ {[%emt 0:00:05]} 83. Kb5 {[%emt 0:00:01]} Qe5+ {[%emt 0:00:02]} 84. Kc6 {[%emt 0:00:10]} Qxa5 {[%emt 0:00:03]} 85. Be6 {[%emt 0:00:18]} Qa6+ {[%emt 0:00:13]} 86. Kd7 {[%emt 0:00:03]} Qb7+ {[%emt 0:00:17]} 87. Ke8 {[%emt 0:00:13]} Qb8+ {[%emt 0:00:09]} 88. Ke7 {[%emt 0:00:01]} Qb4+ {[%emt 0:00:17]} 89. Kf6 {[%emt 0:00:16]} Qd4+ {[%emt 0:00:34]} 90. Kg6 {[%emt 0:00:12]} Kh2 {[%emt 0:00:43]} 91. Rh7+ {[%emt 0:00:10]} Kg3 {[%emt 0:00:25]} 92. Rh5 {[%emt 0:00:32]} Qd3+ {[%emt 0:00:34]} 93. Kg7 {[%emt 0:00:22]} Qd4+ {[%emt 0:00:37]} 94. Rf6 {[%emt 0:00:09]} Qa7+ {[%emt 0:00:09]} 95. Kg6 {[%emt 0:00:03]} Qa8 {[%emt 0:01:05]} 96. Rg5 {[%emt 0:00:09]} Qe8+ {[%emt 0:00:05]} 97. Kf5 {[%emt 0:00:22]} Qb5+ {[%emt 0:00:09]} 98. Kg6 {[%emt 0:00:10]} Qe8+ {[%emt 0:00:01]} 99. Bf7 {[%emt 0:00:12]} Qe4+ {[%emt 0:00:15]} 100. Kg7 {[%emt 0:00:08]} Qe7 {[%emt 0:00:16]} 101. Rfg6 {[%emt 0:00:08]} Kh2 {[%emt 0:00:24]} 102. Rxg4 {[%emt 0:00:10]} Qe5+ {[%emt 0:00:04]} 103. Rf6 {[%emt 0:00:08]} Kh3 {[%emt 0:00:31]} 104. Rg1 {[%emt 0:00:10]} Kh2 {[%emt 0:00:11]} 105. Rgg6 {[%emt 0:00:06]} Kh1 {[%emt 0:00:20]} 106. Kf8 {[%emt 0:00:09]} Qb8+ {[%emt 0:00:10]} 107. Be8 {[%emt 0:00:05]} Qb4+ {[%emt 0:00:21]} 108. Kg8 {[%emt 0:00:04]} Qxb3+ {[%emt 0:00:03]} 109. Bf7 {[%emt 0:00:15]} Qb8+ {[%emt 0:00:21]} 110. Kg7 {[%emt 0:00:01]} Qe5 {[%emt 0:00:07]} 111. Rg4 {[%emt 0:00:17]} Kh2 {[%emt 0:00:29]} 112. Be6 {[%emt 0:00:03]} Qc7+ {[%emt 0:00:11]} 113. Kg6 {[%emt 0:00:28]} Qe5 {[%emt 0:00:22]} 114. Kg7 {[%emt 0:00:24]} Qc7+ {[%emt 0:00:09]} 115. Bf7 {[%emt 0:00:02]} Qe5 {[%emt 0:00:05]} 116. Kg6 {[%emt 0:00:19]} Kh3 {[%emt 0:00:08]} 117. Be6 {[%emt 0:00:10]} Kh2 {[%emt 0:00:05]} 118. Kf7 {[%emt 0:00:09]} Qc7+ {[%emt 0:00:07]} 119. Ke8 {[%emt 0:00:05]} Qb8+ {[%emt 0:00:04]} 120. Ke7 {[%emt 0:00:01]} Qc7+ {[%emt 0:00:02]} 121. Bd7 {[%emt 0:00:02]} Qe5+ {[%emt 0:00:34]} 122. Re6 {[%emt 0:00:09]} Qc5+ {[%emt 0:00:11]} 123. Kd8 {[%emt 0:00:29]} Qf8+ {[%emt 0:00:22]} 124. Re8 {[%emt 0:00:14]} Qf6+ {[%emt 0:00:01]} 125. Kc7 {[%emt 0:00:06]} Qc3+ {[%emt 0:00:09]} 126. Kb6 {[%emt 0:00:14]} Qb2+ {[%emt 0:00:10]} 127. Kc7 {[%emt 0:00:10]} Qc3+ {[%emt 0:00:01]} 128. Bc6 {[%emt 0:00:12]} Qa5+ {[%emt 0:00:15]} 129. Kb7 {[%emt 0:00:02]} Qc3 {[%emt 0:00:12]} 130. Ree4 {[%emt 0:00:18]} Qb3+ {[%emt 0:00:14]} 131. Kc7 {[%emt 0:00:10]} Qf7+ {[%emt 0:00:31]} 132. Kd6 {[%emt 0:00:01]} Qf6+ {[%emt 0:00:10]} 133. Kc5 {[%emt 0:00:01]} Qc3+ {[%emt 0:00:03]} 134. Kb6 {[%emt 0:00:06]} Qe3+ {[%emt 0:00:24]} 135. Kc7 {[%emt 0:00:23]} Qa7+ {[%emt 0:00:04]} 136. Kd6 {[%emt 0:00:06]} Qb8+ {[%emt 0:00:28]} 137. Kd5 {[%emt 0:00:19]} Qd8+ {[%emt 0:00:05]} 138. Kc4 {[%emt 0:00:03]} Kh3 {[%emt 0:00:41]} 139. Rg7 {[%emt 0:00:15]} Qd2 {[%emt 0:00:53]} 140. Bd7+ {[%emt 0:00:04]} 1-0

[Event "11th LCC Rapid 2019"]
[Site "London"]
[Date "2019.12.07"]
[Round "6.17"]
[White "Onslow, Teddy"]
[Black "Myall, Ivan J"]
[Result "0-1"]
[WhiteElo "1746"]
[BlackElo "1994"]
[PlyCount "68"]
[EventDate "2019.12.08"]
[EventType "swiss"]
[EventCountry "ENG"]
[TimeControl "15+10"]
[WhiteClock "0:04:33"]
[BlackClock "0:09:44"]

1. d4 {[%emt 0:00:00]} Nf6 {[%emt 0:00:00]} 2. Bf4 {[%emt 0:00:00]} c5 {[%emt 0:00:00]} 3. c3 {[%emt 0:00:00]} cxd4 {[%emt 0:00:00]} 4. cxd4 {[%emt 0:00:00]} Nc6 {[%emt 0:00:00]} 5. e3 {[%emt 0:00:00]} Qb6 {[%emt 0:00:00]} 6. Qc2 {[%emt 0:00:00]} Nb4 {[%emt 0:00:00]} 7. Qd2 {[%emt 0:00:00]} Ne4 {[%emt 0:00:00]} 8. Qd1 {[%emt 0:00:00]} Nd5 {[%emt 0:00:00]} 9. Nd2 {[%emt 0:00:00]} Nxd2 {[%emt 0:00:00]} 10. Qxd2 {[%emt 0:00:00]} e5 {[%emt 0:00:00]} 11. a3 {[%emt 0:00:00]} exf4 {[%emt 0:00:00]} 12. exf4 {[%emt 0:00:00]} Bd6 {[%emt 0:00:00]} 13. g3 {[%emt 0:00:00]} O-O {[%emt 0:00:00]} 14. Nf3 {[%emt 0:00:00]} Re8+ {[%emt 0:00:00]} 15. Be2 {[%emt 0:00:00]} Nf6 {[%emt 0:00:00]} 16. O-O {[%emt 0:00:00]} Ne4 {[%emt 0:00:00]} 17. Qc2 {[%emt 0:00:00]} Bf8 {[%emt 0:00:00]} 18. Bc4 {[%emt 0:00:00]} d6 {[%emt 0:00:00]} 19. b4 {[%emt 0:00:00]} Bg4 {[%emt 0:00:00]} 20. Nh4 {[%emt 0:00:00]} Qxd4 {[%emt 0:00:00]} 21. Qb3 {[%emt 0:00:00]} Be6 {[%emt 0:00:00]} 22. Bxe6 {[%emt 0:00:00]} Rxe6 {[%emt 0:00:00]} 23. Rad1 {[%emt 0:00:00]} Qc3 {[%emt 0:00:00]} 24. Qd5 {[%emt 0:00:00]} Qc6 {[%emt 0:00:00]} 25. Qd3 {[%emt 0:00:00]} Nc3 {[%emt 0:00:00]} 26. Rd2 {[%emt 0:00:00]} Rae8 {[%emt 0:00:00]} 27. Nf3 {[%emt 0:00:00]} Ne2+ {[%emt 0:00:00]} 28. Kh1 {[%emt 0:00:00]} Nc1 {[%emt 0:00:00]} 29. Rxc1 {[%emt 0:00:00]} Qxc1+ {[%emt 0:00:00]} 30. Kg2 {[%emt 0:00:00]} Qc6 {[%emt 0:00:02]} 31. h4 {[%emt 0:00:00]} Qe4 {[%emt 0:00:10]} 32. Qc3 {[%emt 0:00:00]} d5 {[%emt 0:00:20]} 33. Kh2 {[%emt 0:00:00]} Qc4 {[%emt 0:00:17]} 34. Qb2 {[%emt 0:00:00]} Re2 {[%emt 0:00:33]} 0-1